[Event "November 21 Late 2023"]
[Site "https://www.chess.com"]
[Date "2023.11.21"]
[Round "10"]
[White "BardArtem"]
[Black "GatoRojo150"]
[Result "1/2-1/2"]
[Board "30"]
[TimeControl "180+1"]
[WhiteElo "2775"]
[BlackElo "2585"]
[WhiteClock "0:00:07"]
[BlackClock "0:00:14"]

1. e4 {[%clk 0:03:00]}  e5 {[%clk 0:03:00]} 2. d4 {[%clk 0:03:00]}  exd4 {[%clk 0:03:00]} 3. Qxd4 {[%clk 0:03:01]}  Nc6 {[%clk 0:03:00]} 4. Qd3 {[%clk 0:03:02]}  Nf6 {[%clk 0:02:59]} 5. Nc3 {[%clk 0:03:03]}  d5 {[%clk 0:02:59]} 6. Bf4 {[%clk 0:03:02]}  d4 {[%clk 0:02:30]} 7. Nb5 {[%clk 0:02:58]}  Bb4+ {[%clk 0:02:26]} 8. c3 {[%clk 0:02:57]}  Ba5 {[%clk 0:02:18]} 9. O-O-O {[%clk 0:02:51]}  O-O {[%clk 0:02:06]} 10. cxd4 {[%clk 0:02:28]}  a6 {[%clk 0:01:46]} 11. Nc3 {[%clk 0:02:21]}  Bxc3 {[%clk 0:01:45]} 12. bxc3 {[%clk 0:02:22]}  Qe7 {[%clk 0:01:44]} 13. Re1 {[%clk 0:02:09]}  Qa3+ {[%clk 0:01:42]} 14. Kb1 {[%clk 0:02:09]}  Re8 {[%clk 0:01:35]} 15. Nf3 {[%clk 0:01:51]}  Be6 {[%clk 0:01:35]} 16. Qc2 {[%clk 0:01:47]}  Nxe4 {[%clk 0:01:29]} 17. Rxe4 {[%clk 0:01:44]}  Bxa2+ {[%clk 0:01:13]} 18. Qxa2 {[%clk 0:01:44]}  Qxa2+ {[%clk 0:01:12]} 19. Kxa2 {[%clk 0:01:45]}  Rxe4 {[%clk 0:01:12]} 20. Bg3 {[%clk 0:01:41]}  b5 {[%clk 0:01:09]} 21. Bd3 {[%clk 0:01:41]}  Re7 {[%clk 0:01:09]} 22. d5 {[%clk 0:01:37]}  Na5 {[%clk 0:01:08]} 23. Nd4 {[%clk 0:01:25]}  g6 {[%clk 0:01:03]} 24. h4 {[%clk 0:01:21]}  Rd8 {[%clk 0:00:58]} 25. d6 {[%clk 0:01:15]}  cxd6 {[%clk 0:00:56]} 26. h5 {[%clk 0:01:16]}  Rc7 {[%clk 0:00:50]} 27. hxg6 {[%clk 0:01:12]}  fxg6 {[%clk 0:00:48]} 28. Ne6 {[%clk 0:01:12]}  Rxc3 {[%clk 0:00:47]} 29. Nxd8 {[%clk 0:01:11]}  Rxd3 {[%clk 0:00:47]} 30. Kb2 {[%clk 0:01:03]}  Nc4+ {[%clk 0:00:45]} 31. Kc2 {[%clk 0:01:03]}  Rd2+ {[%clk 0:00:43]} 32. Kc3 {[%clk 0:01:03]}  d5 {[%clk 0:00:43]} 33. Nc6 {[%clk 0:00:51]}  Ra2 {[%clk 0:00:27]} 34. Ne7+ {[%clk 0:00:48]}  Kf7 {[%clk 0:00:22]} 35. Nxd5 {[%clk 0:00:49]}  h5 {[%clk 0:00:19]} 36. Re1 {[%clk 0:00:48]}  Ra3+ {[%clk 0:00:18]} 37. Kb4 {[%clk 0:00:47]}  Ra4+ {[%clk 0:00:18]} 38. Kc5 {[%clk 0:00:48]}  Kf8 {[%clk 0:00:14]} 39. Re6 {[%clk 0:00:43]}  Kg7 {[%clk 0:00:12]} 40. Nc7 {[%clk 0:00:40]}  Ra2 {[%clk 0:00:10]} 41. Rxa6 {[%clk 0:00:39]}  Rxa6 {[%clk 0:00:10]} 42. Nxa6 {[%clk 0:00:40]}  Nd2 {[%clk 0:00:08]} 43. Kxb5 {[%clk 0:00:38]}  Ne4 {[%clk 0:00:08]} 44. Kc4 {[%clk 0:00:37]}  Kf6 {[%clk 0:00:06]} 45. Kd4 {[%clk 0:00:37]}  Kf5 {[%clk 0:00:06]} 46. Ke3 {[%clk 0:00:35]}  Nc3 {[%clk 0:00:05]} 47. Nc5 {[%clk 0:00:35]}  Nd5+ {[%clk 0:00:05]} 48. Kf3 {[%clk 0:00:34]}  g5 {[%clk 0:00:05]} 49. Bh2 {[%clk 0:00:32]}  h4 {[%clk 0:00:05]} 50. g4+ {[%clk 0:00:28]}  hxg3 {[%clk 0:00:05]} 51. Bxg3 {[%clk 0:00:28]}  Nc3 {[%clk 0:00:03]} 52. Nb3 {[%clk 0:00:23]}  Nd1 {[%clk 0:00:03]} 53. Ke2 {[%clk 0:00:22]}  Nxf2 {[%clk 0:00:03]} 54. Kxf2 {[%clk 0:00:22]}  g4 {[%clk 0:00:04]} 55. Ke3 {[%clk 0:00:22]}  Ke6 {[%clk 0:00:04]} 56. Kf4 {[%clk 0:00:22]}  Kd5 {[%clk 0:00:05]} 57. Nd2 {[%clk 0:00:23]}  Kd4 {[%clk 0:00:05]} 58. Nf1 {[%clk 0:00:22]}  Kd3 {[%clk 0:00:06]} 59. Nh2 {[%clk 0:00:23]}  Kd4 {[%clk 0:00:06]} 60. Nxg4 {[%clk 0:00:24]}  Kd5 {[%clk 0:00:07]} 61. Bf2 {[%clk 0:00:23]}  Kc4 {[%clk 0:00:07]} 62. Ke4 {[%clk 0:00:23]}  Kb5 {[%clk 0:00:06]} 63. Kd5 {[%clk 0:00:23]}  Kb4 {[%clk 0:00:06]} 64. Bd4 {[%clk 0:00:24]}  Kb3 {[%clk 0:00:06]} 65. Ne3 {[%clk 0:00:23]}  Kb4 {[%clk 0:00:06]} 66. Kc6 {[%clk 0:00:24]}  Kb3 {[%clk 0:00:05]} 67. Kb5 {[%clk 0:00:24]}  Ka3 {[%clk 0:00:04]} 68. Kc4 {[%clk 0:00:24]}  Ka4 {[%clk 0:00:05]} 69. Bb2 {[%clk 0:00:21]}  Ka5 {[%clk 0:00:06]} 70. Nd5 {[%clk 0:00:19]}  Ka6 {[%clk 0:00:05]} 71. Kc5 {[%clk 0:00:18]}  Kb7 {[%clk 0:00:06]} 72. Nb6 {[%clk 0:00:17]}  Kc7 {[%clk 0:00:05]} 73. Bf6 {[%clk 0:00:17]}  Kb7 {[%clk 0:00:05]} 74. Be7 {[%clk 0:00:17]}  Kc7 {[%clk 0:00:06]} 75. Bf6 {[%clk 0:00:15]}  Kb7 {[%clk 0:00:05]} 76. Be5 {[%clk 0:00:16]}  Ka7 {[%clk 0:00:04]} 77. Kc6 {[%clk 0:00:16]}  Ka6 {[%clk 0:00:05]} 78. Bc3 {[%clk 0:00:16]}  Ka7 {[%clk 0:00:04]} 79. Nd7 {[%clk 0:00:16]}  Ka8 {[%clk 0:00:04]} 80. Kc7 {[%clk 0:00:14]}  Ka7 {[%clk 0:00:04]} 81. Nb8 {[%clk 0:00:06]}  Ka8 {[%clk 0:00:05]} 82. Na6 {[%clk 0:00:06]}  Ka7 {[%clk 0:00:06]} 83. Nb4 {[%clk 0:00:06]}  Ka8 {[%clk 0:00:06]} 84. Kc8 {[%clk 0:00:02]}  Ka7 {[%clk 0:00:07]} 85. Kc7 {[%clk 0:00:03]}  Ka8 {[%clk 0:00:07]} 86. Nd3 {[%clk 0:00:03]}  Ka7 {[%clk 0:00:07]} 87. Nc5 {[%clk 0:00:04]}  Ka8 {[%clk 0:00:08]} 88. Be5 {[%clk 0:00:04]}  Ka7 {[%clk 0:00:08]} 89. Kc6 {[%clk 0:00:04]}  Ka8 {[%clk 0:00:09]} 90. Nd7 {[%clk 0:00:04]}  Ka7 {[%clk 0:00:09]} 91. Nb6 {[%clk 0:00:03]}  Ka6 {[%clk 0:00:09]} 92. Bc3 {[%clk 0:00:04]}  Ka7 {[%clk 0:00:10]} 93. Nd5 {[%clk 0:00:03]}  Kb8 {[%clk 0:00:10]} 94. Ne7 {[%clk 0:00:02]}  Ka7 {[%clk 0:00:09]} 95. Bb4 {[%clk 0:00:03]}  Ka8 {[%clk 0:00:09]} 96. Kb6 {[%clk 0:00:02]}  Kb8 {[%clk 0:00:10]} 97. Bc5 {[%clk 0:00:02]}  Ka8 {[%clk 0:00:10]} 98. Nd5 {[%clk 0:00:03]}  Kb8 {[%clk 0:00:10]} 99. Kc6 {[%clk 0:00:04]}  Ka8 {[%clk 0:00:10]} 100. Nc7+ {[%clk 0:00:04]}  Kb8 {[%clk 0:00:11]} 101. Bb6 {[%clk 0:00:05]}  Kc8 {[%clk 0:00:11]} 102. Ba7 {[%clk 0:00:06]}  Kd8 {[%clk 0:00:11]} 103. Nd5 {[%clk 0:00:07]}  Kc8 {[%clk 0:00:12]} 104. Ne7+ {[%clk 0:00:07]}  Kd8 {[%clk 0:00:12]} 105. Kd6 {[%clk 0:00:08]}  Ke8 {[%clk 0:00:12]} 106. Ke6 {[%clk 0:00:08]}  Kd8 {[%clk 0:00:13]} 107. Bb6+ {[%clk 0:00:09]}  Ke8 {[%clk 0:00:13]} 108. Nf5 {[%clk 0:00:10]}  Kf8 {[%clk 0:00:13]} 109. Kf6 {[%clk 0:00:10]}  Ke8 {[%clk 0:00:14]} 110. Ke6 {[%clk 0:00:07]} 1/2-1/2

[Event "November 21 Late 2023"]
[Site "https://www.chess.com"]
[Date "2023.11.21"]
[Round "10"]
[White "Janaszak, Dawid"]
[Black "Hambleton, Aman"]
[Result "0-1"]
[Board "31"]
[TimeControl "180+1"]
[WhiteFideId "1119206"]
[BlackFideId "2606577"]
[WhiteElo "2218"]
[BlackElo "2511"]
[WhiteTeam "POL"]
[BlackTeam "CAN"]
[WhiteClock "0:00:00"]
[BlackClock "0:00:04"]

1. d4 {[%clk 0:03:00]}  e5 {[%clk 0:02:20]} 2. e4 {[%clk 0:02:59]}  exd4 {[%clk 0:02:18]} 3. Nf3 {[%clk 0:02:57]}  d5 {[%clk 0:02:16]} 4. exd5 {[%clk 0:02:50]}  Qxd5 {[%clk 0:02:08]} 5. Qxd4 {[%clk 0:02:45]}  Qxd4 {[%clk 0:02:05]} 6. Nxd4 {[%clk 0:02:46]}  Bc5 {[%clk 0:02:01]} 7. Nb5 {[%clk 0:02:36]}  Bb6 {[%clk 0:01:48]} 8. Bf4 {[%clk 0:02:35]}  Na6 {[%clk 0:01:45]} 9. N1c3 {[%clk 0:02:33]}  Nf6 {[%clk 0:01:41]} 10. Na4 {[%clk 0:02:26]}  Ba5+ {[%clk 0:00:59]} 11. c3 {[%clk 0:02:24]}  O-O {[%clk 0:00:59]} 12. O-O-O {[%clk 0:02:05]}  Ne4 {[%clk 0:00:41]} 13. Be3 {[%clk 0:01:57]}  c6 {[%clk 0:00:40]} 14. Nd6 {[%clk 0:01:51]}  Nxd6 {[%clk 0:00:38]} 15. Rxd6 {[%clk 0:01:51]}  Bc7 {[%clk 0:00:18]} 16. Rd2 {[%clk 0:01:47]}  Nb8 {[%clk 0:00:16]} 17. Nc5 {[%clk 0:01:44]}  b6 {[%clk 0:00:12]} 18. Ne4 {[%clk 0:01:44]}  Ba6 {[%clk 0:00:04]} 19. c4 {[%clk 0:01:39]}  Re8 {[%clk 0:00:03]} 20. Nd6 {[%clk 0:01:34]}  Bxd6 {[%clk 0:00:04]} 21. Rxd6 {[%clk 0:01:35]}  c5 {[%clk 0:00:04]} 22. Be2 {[%clk 0:01:32]}  Bb7 {[%clk 0:00:04]} 23. Rg1 {[%clk 0:01:22]}  h6 {[%clk 0:00:04]} 24. Bg4 {[%clk 0:01:20]}  Nc6 {[%clk 0:00:03]} 25. Bf3 {[%clk 0:01:10]}  Na5 {[%clk 0:00:03]} 26. Bxb7 {[%clk 0:01:08]}  Nxb7 {[%clk 0:00:04]} 27. Rd7 {[%clk 0:01:09]}  Na5 {[%clk 0:00:04]} 28. b3 {[%clk 0:01:10]}  Nc6 {[%clk 0:00:02]} 29. Rgd1 {[%clk 0:01:10]}  Kf8 {[%clk 0:00:02]} 30. Bf4 {[%clk 0:01:09]}  Nd4 {[%clk 0:00:02]} 31. Be3 {[%clk 0:01:06]}  Nc6 {[%clk 0:00:02]} 32. Rc7 {[%clk 0:01:05]}  Rac8 {[%clk 0:00:02]} 33. Rdd7 {[%clk 0:01:04]}  Rxc7 {[%clk 0:00:02]} 34. Rxc7 {[%clk 0:01:05]}  Re6 {[%clk 0:00:02]} 35. a3 {[%clk 0:00:58]}  Ke8 {[%clk 0:00:02]} 36. b4 {[%clk 0:00:59]}  cxb4 {[%clk 0:00:02]} 37. axb4 {[%clk 0:00:59]}  Nxb4 {[%clk 0:00:03]} 38. Rxa7 {[%clk 0:00:58]}  Nd3+ {[%clk 0:00:03]} 39. Kc2 {[%clk 0:00:56]}  Ne1+ {[%clk 0:00:03]} 40. Kc3 {[%clk 0:00:56]}  Nxg2 {[%clk 0:00:04]} 41. Bd4 {[%clk 0:00:53]}  Nf4 {[%clk 0:00:02]} 42. Bxg7 {[%clk 0:00:51]}  Rg6 {[%clk 0:00:02]} 43. Be5 {[%clk 0:00:49]}  Ne6 {[%clk 0:00:01]} 44. f4 {[%clk 0:00:49]}  Rg2 {[%clk 0:00:01]} 45. f5 {[%clk 0:00:47]}  Nc5 {[%clk 0:00:02]} 46. Ra8+ {[%clk 0:00:39]}  Kd7 {[%clk 0:00:02]} 47. Ra7+ {[%clk 0:00:39]}  Ke8 {[%clk 0:00:02]} 48. Ra8+ {[%clk 0:00:37]}  Ke7 {[%clk 0:00:02]} 49. Rb8 {[%clk 0:00:34]}  Nd7 {[%clk 0:00:01]} 50. Rb7 {[%clk 0:00:34]}  Rf2 {[%clk 0:00:01]} 51. Bg7 {[%clk 0:00:30]}  Rf3+ {[%clk 0:00:01]} 52. Kb4 {[%clk 0:00:29]}  h5 {[%clk 0:00:01]} 53. f6+ {[%clk 0:00:26]}  Ke6 {[%clk 0:00:02]} 54. h4 {[%clk 0:00:25]}  Rf4 {[%clk 0:00:02]} 55. Rc7 {[%clk 0:00:24]}  Rxh4 {[%clk 0:00:02]} 56. Rc6+ {[%clk 0:00:25]}  Kf5 {[%clk 0:00:03]} 57. Rd6 {[%clk 0:00:25]}  Ne5 {[%clk 0:00:03]} 58. Rxb6 {[%clk 0:00:24]}  Rxc4+ {[%clk 0:00:03]} 59. Kb3 {[%clk 0:00:23]}  Rc8 {[%clk 0:00:04]} 60. Rb4 {[%clk 0:00:20]}  Nd7 {[%clk 0:00:04]} 61. Rb5+ {[%clk 0:00:12]}  Kg6 {[%clk 0:00:04]} 62. Rd5 {[%clk 0:00:02]}  Rc7 {[%clk 0:00:03]} 63. Rd6 {[%clk 0:00:01]}  Rb7+ {[%clk 0:00:03]} 64. Kc4 {[%clk 0:00:01]}  Ne5+ {[%clk 0:00:03]} 65. Kd5 {[%clk 0:00:01]}  Ng4 {[%clk 0:00:04]} 66. Kc6 {[%clk 0:00:01]}  Ra7 {[%clk 0:00:04]} 67. Rd1 {[%clk 0:00:00]}  Ra6+ {[%clk 0:00:04]} 0-1

[Event "November 21 Late 2023"]
[Site "https://www.chess.com"]
[Date "2023.11.21"]
[Round "10"]
[White "Arabidze, Meri"]
[Black "Hajiyev, Kanan"]
[Result "1-0"]
[Board "34"]
[TimeControl "180+1"]
[WhiteFideId "13604040"]
[BlackFideId "13404148"]
[WhiteElo "2416"]
[BlackElo "2102"]
[WhiteTeam "GEO"]
[BlackTeam "AZE"]
[WhiteClock "0:00:54"]
[BlackClock "0:00:03"]

1. Nf3 {[%clk 0:03:00]}  c6 {[%clk 0:03:00]} 2. b3 {[%clk 0:03:01]}  d5 {[%clk 0:03:01]} 3. Bb2 {[%clk 0:03:01]}  Nf6 {[%clk 0:03:02]} 4. e3 {[%clk 0:03:00]}  g6 {[%clk 0:03:02]} 5. g3 {[%clk 0:02:58]}  Bg7 {[%clk 0:03:03]} 6. Bg2 {[%clk 0:02:58]}  O-O {[%clk 0:03:03]} 7. O-O {[%clk 0:02:59]}  Bg4 {[%clk 0:03:04]} 8. h3 {[%clk 0:02:58]}  Bxf3 {[%clk 0:03:04]} 9. Bxf3 {[%clk 0:02:56]}  Nbd7 {[%clk 0:03:05]} 10. d4 {[%clk 0:02:53]}  a5 {[%clk 0:03:05]} 11. a4 {[%clk 0:02:51]}  e5 {[%clk 0:02:52]} 12. dxe5 {[%clk 0:02:49]}  Ne4 {[%clk 0:02:53]} 13. Bxe4 {[%clk 0:02:34]}  dxe4 {[%clk 0:02:52]} 14. Nd2 {[%clk 0:02:35]}  Nxe5 {[%clk 0:02:39]} 15. Nxe4 {[%clk 0:02:33]}  f5 {[%clk 0:02:19]} 16. Nc5 {[%clk 0:02:22]}  Qxd1 {[%clk 0:01:26]} 17. Raxd1 {[%clk 0:02:23]}  Rf7 {[%clk 0:01:12]} 18. Kg2 {[%clk 0:02:22]}  Re8 {[%clk 0:01:04]} 19. Rd2 {[%clk 0:02:00]}  b6 {[%clk 0:00:58]} 20. Bxe5 {[%clk 0:01:55]}  Bxe5 {[%clk 0:00:47]} 21. Nd3 {[%clk 0:01:50]}  Bc3 {[%clk 0:00:47]} 22. Rdd1 {[%clk 0:01:50]}  Rd7 {[%clk 0:00:45]} 23. Kf3 {[%clk 0:01:43]}  Red8 {[%clk 0:00:45]} 24. Ke2 {[%clk 0:01:44]}  g5 {[%clk 0:00:40]} 25. h4 {[%clk 0:01:38]}  gxh4 {[%clk 0:00:36]} 26. gxh4 {[%clk 0:01:38]}  Bf6 {[%clk 0:00:36]} 27. h5 {[%clk 0:01:35]}  Bc3 {[%clk 0:00:34]} 28. Nf4 {[%clk 0:01:23]}  Rd2+ {[%clk 0:00:34]} 29. Rxd2 {[%clk 0:01:22]}  Rxd2+ {[%clk 0:00:35]} 30. Kf3 {[%clk 0:01:22]}  Rxc2 {[%clk 0:00:35]} 31. Rd1 {[%clk 0:01:18]}  Rd2 {[%clk 0:00:12]} 32. Rc1 {[%clk 0:01:17]}  Be5 {[%clk 0:00:10]} 33. Rxc6 {[%clk 0:01:00]}  Bxf4 {[%clk 0:00:09]} 34. Kxf4 {[%clk 0:01:01]}  Rxf2+ {[%clk 0:00:09]} 35. Kg5 {[%clk 0:01:01]}  b5 {[%clk 0:00:06]} 36. axb5 {[%clk 0:01:00]}  Rb2 {[%clk 0:00:05]} 37. Kf6 {[%clk 0:00:59]}  h6 {[%clk 0:00:04]} 38. Rc8+ {[%clk 0:00:56]}  Kh7 {[%clk 0:00:05]} 39. Rc7+ {[%clk 0:00:56]}  Kg8 {[%clk 0:00:05]} 40. b6 {[%clk 0:00:55]}  Rxb3 {[%clk 0:00:04]} 41. b7 {[%clk 0:00:55]}  Rb6+ {[%clk 0:00:05]} 42. Ke5 {[%clk 0:00:55]}  a4 {[%clk 0:00:02]} 43. Rc8+ {[%clk 0:00:54]}  Kf7 {[%clk 0:00:03]} 44. b8=Q {[%clk 0:00:55]}  Rb5+ {[%clk 0:00:03]} 45. Qxb5 {[%clk 0:00:54]} 1-0

[Event "November 21 Late 2023"]
[Site "https://www.chess.com"]
[Date "2023.11.21"]
[Round "10"]
[White "Rios Escobar, Adan"]
[Black "Vlassov, Nikolai"]
[Result "0-1"]
[Board "37"]
[TimeControl "180+1"]
[WhiteFideId "3403645"]
[BlackFideId "4103360"]
[WhiteElo "2432"]
[BlackElo "2324"]
[WhiteTeam "CHI"]
[BlackTeam "FID"]
[WhiteClock "0:00:06"]
[BlackClock "0:00:14"]

1. Nf3 {[%clk 0:02:55]}  c5 {[%clk 0:02:58]} 2. c4 {[%clk 0:02:46]}  g6 {[%clk 0:02:58]} 3. Nc3 {[%clk 0:02:42]}  Bg7 {[%clk 0:02:56]} 4. g3 {[%clk 0:02:42]}  Nc6 {[%clk 0:02:56]} 5. Bg2 {[%clk 0:02:43]}  d6 {[%clk 0:02:56]} 6. O-O {[%clk 0:02:43]}  f5 {[%clk 0:02:57]} 7. Rb1 {[%clk 0:02:38]}  Nf6 {[%clk 0:02:56]} 8. a3 {[%clk 0:02:38]}  a5 {[%clk 0:02:44]} 9. e3 {[%clk 0:02:14]}  O-O {[%clk 0:02:41]} 10. d4 {[%clk 0:02:13]}  e5 {[%clk 0:02:36]} 11. d5 {[%clk 0:02:08]}  Ne7 {[%clk 0:02:34]} 12. e4 {[%clk 0:02:08]}  h6 {[%clk 0:02:22]} 13. Qe2 {[%clk 0:01:49]}  fxe4 {[%clk 0:02:16]} 14. Nd2 {[%clk 0:01:43]}  Bg4 {[%clk 0:02:16]} 15. Qe3 {[%clk 0:01:35]}  Nf5 {[%clk 0:02:15]} 16. Qe1 {[%clk 0:01:31]}  Nd4 {[%clk 0:02:08]} 17. Ncxe4 {[%clk 0:01:31]}  Nc2 {[%clk 0:02:04]} 18. Nxf6+ {[%clk 0:01:25]}  Qxf6 {[%clk 0:02:04]} 19. Qe4 {[%clk 0:01:24]}  Bf5 {[%clk 0:02:05]} 20. Qh4 {[%clk 0:01:17]}  g5 {[%clk 0:01:36]} 21. Qh5 {[%clk 0:01:14]}  Nd4 {[%clk 0:01:32]} 22. Ne4 {[%clk 0:01:12]}  Qg6 {[%clk 0:01:17]} 23. Qxg6 {[%clk 0:01:08]}  Bxg6 {[%clk 0:01:18]} 24. Be3 {[%clk 0:01:06]}  Nf3+ {[%clk 0:01:16]} 25. Bxf3 {[%clk 0:00:57]}  Rxf3 {[%clk 0:01:17]} 26. Nxd6 {[%clk 0:00:56]}  Bxb1 {[%clk 0:01:10]} 27. Rxb1 {[%clk 0:00:56]}  b6 {[%clk 0:01:09]} 28. Nb5 {[%clk 0:00:39]}  g4 {[%clk 0:01:05]} 29. Nc3 {[%clk 0:00:22]}  h5 {[%clk 0:01:02]} 30. Kg2 {[%clk 0:00:21]}  Kh7 {[%clk 0:00:59]} 31. Ne4 {[%clk 0:00:21]}  Kg6 {[%clk 0:00:59]} 32. h3 {[%clk 0:00:20]}  Bh6 {[%clk 0:00:51]} 33. Bxh6 {[%clk 0:00:15]}  Kxh6 {[%clk 0:00:52]} 34. h4 {[%clk 0:00:16]}  Rd3 {[%clk 0:00:42]} 35. Re1 {[%clk 0:00:15]}  Kg6 {[%clk 0:00:41]} 36. Nd6 {[%clk 0:00:14]}  Rd2 {[%clk 0:00:32]} 37. Rxe5 {[%clk 0:00:13]}  Rxb2 {[%clk 0:00:26]} 38. Re6+ {[%clk 0:00:13]}  Kh7 {[%clk 0:00:25]} 39. Nf5 {[%clk 0:00:13]}  Rf8 {[%clk 0:00:23]} 40. Rh6+ {[%clk 0:00:12]}  Kg8 {[%clk 0:00:23]} 41. Rxh5 {[%clk 0:00:13]}  b5 {[%clk 0:00:20]} 42. Rg5+ {[%clk 0:00:12]}  Kh7 {[%clk 0:00:20]} 43. cxb5 {[%clk 0:00:05]}  c4 {[%clk 0:00:20]} 44. d6 {[%clk 0:00:05]}  c3 {[%clk 0:00:20]} 45. Rg7+ {[%clk 0:00:03]}  Kh8 {[%clk 0:00:20]} 46. Rxg4 {[%clk 0:00:02]}  Rxf5 {[%clk 0:00:19]} 47. Rc4 {[%clk 0:00:02]}  Rfxf2+ {[%clk 0:00:18]} 48. Kh3 {[%clk 0:00:02]}  c2 {[%clk 0:00:16]} 49. d7 {[%clk 0:00:02]}  Rd2 {[%clk 0:00:16]} 50. Rc8+ {[%clk 0:00:01]}  Kg7 {[%clk 0:00:16]} 51. Rc7 {[%clk 0:00:02]}  Kf6 {[%clk 0:00:16]} 52. Rc6+ {[%clk 0:00:02]}  Ke7 {[%clk 0:00:15]} 53. b6 {[%clk 0:00:02]}  Rxd7 {[%clk 0:00:14]} 54. a4 {[%clk 0:00:02]}  Rb7 {[%clk 0:00:14]} 55. Rc3 {[%clk 0:00:01]}  R7xb6 {[%clk 0:00:14]} 56. Re3+ {[%clk 0:00:01]}  Re6 {[%clk 0:00:13]} 57. Rc3 {[%clk 0:00:02]}  Re1 {[%clk 0:00:13]} 58. h5 {[%clk 0:00:03]}  c1=Q {[%clk 0:00:13]} 59. Rxc1 {[%clk 0:00:03]}  Rxc1 {[%clk 0:00:13]} 60. g4 {[%clk 0:00:03]}  Kf6 {[%clk 0:00:12]} 61. Kg3 {[%clk 0:00:03]}  Kg5 {[%clk 0:00:12]} 62. Kf3 {[%clk 0:00:02]}  Rc4 {[%clk 0:00:13]} 63. Ke3 {[%clk 0:00:02]}  Rb3+ {[%clk 0:00:13]} 64. Kd2 {[%clk 0:00:03]}  Rxa4 {[%clk 0:00:13]} 65. h6 {[%clk 0:00:04]}  Ra2+ {[%clk 0:00:13]} 66. Kc1 {[%clk 0:00:05]}  Rh3 {[%clk 0:00:13]} 67. Kb1 {[%clk 0:00:06]}  Rg2 {[%clk 0:00:14]} 68. h7 {[%clk 0:00:06]}  Rh1# {[%clk 0:00:14]} 0-1

[Event "November 21 Late 2023"]
[Site "https://www.chess.com"]
[Date "2023.11.21"]
[Round "10"]
[White "MKlose11"]
[Black "Khater, Sherif"]
[Result "0-1"]
[Board "39"]
[TimeControl "180+1"]
[BlackFideId "2034280"]
[WhiteElo "2635"]
[BlackElo "2520"]
[BlackTeam "USA"]
[WhiteClock "0:00:55"]
[BlackClock "0:00:33"]

1. e4 {[%clk 0:02:58]}  a6 {[%clk 0:03:00]} 2. d4 {[%clk 0:02:56]}  c6 {[%clk 0:02:59]} 3. Bd3 {[%clk 0:02:56]}  d5 {[%clk 0:02:58]} 4. e5 {[%clk 0:02:56]}  c5 {[%clk 0:02:57]} 5. c3 {[%clk 0:02:57]}  Nc6 {[%clk 0:02:56]} 6. Ne2 {[%clk 0:02:54]}  e6 {[%clk 0:02:52]} 7. O-O {[%clk 0:02:52]}  cxd4 {[%clk 0:02:53]} 8. cxd4 {[%clk 0:02:53]}  Nb4 {[%clk 0:02:53]} 9. Be3 {[%clk 0:02:46]}  Nxd3 {[%clk 0:02:51]} 10. Qxd3 {[%clk 0:02:47]}  Bd7 {[%clk 0:02:48]} 11. Nbc3 {[%clk 0:02:48]}  Ne7 {[%clk 0:02:41]} 12. f4 {[%clk 0:02:47]}  Nf5 {[%clk 0:02:41]} 13. Bf2 {[%clk 0:02:47]}  h5 {[%clk 0:02:41]} 14. g3 {[%clk 0:02:43]}  Rc8 {[%clk 0:02:40]} 15. h3 {[%clk 0:02:43]}  Be7 {[%clk 0:02:29]} 16. Rac1 {[%clk 0:02:42]}  Bb4 {[%clk 0:02:27]} 17. a3 {[%clk 0:02:18]}  Bxc3 {[%clk 0:02:19]} 18. Nxc3 {[%clk 0:02:19]}  Bc6 {[%clk 0:02:12]} 19. g4 {[%clk 0:02:07]}  hxg4 {[%clk 0:02:02]} 20. hxg4 {[%clk 0:02:08]}  Ne7 {[%clk 0:01:34]} 21. Kg2 {[%clk 0:02:04]}  Kd7 {[%clk 0:01:34]} 22. b4 {[%clk 0:01:56]}  Ng6 {[%clk 0:01:32]} 23. Bg3 {[%clk 0:01:56]}  Qb6 {[%clk 0:01:22]} 24. Rh1 {[%clk 0:01:54]}  Bb5 {[%clk 0:01:17]} 25. Qe3 {[%clk 0:01:47]}  Rxh1 {[%clk 0:01:12]} 26. Rxh1 {[%clk 0:01:45]}  Qc6 {[%clk 0:01:07]} 27. Be1 {[%clk 0:01:41]}  Qc4 {[%clk 0:01:02]} 28. Rh7 {[%clk 0:01:31]}  Qf1+ {[%clk 0:00:59]} 29. Kg3 {[%clk 0:01:31]}  Bd3 {[%clk 0:00:39]} 30. Rxg7 {[%clk 0:01:27]}  Rh8 {[%clk 0:00:38]} 31. Rxf7+ {[%clk 0:00:55]}  Ke8 {[%clk 0:00:33]} 0-1

[Event "November 21 Late 2023"]
[Site "https://www.chess.com"]
[Date "2023.11.21"]
[Round "10"]
[White "Musovic, Armin"]
[Black "Gimenez Aguirre, Alejo Ismael"]
[Result "1-0"]
[Board "40"]
[TimeControl "180+1"]
[WhiteFideId "939935"]
[BlackFideId "32041667"]
[WhiteElo "2322"]
[BlackElo "2165"]
[WhiteTeam "MNE"]
[BlackTeam "ARG"]
[WhiteClock "0:00:08"]
[BlackClock "0:00:04"]

1. a3 {[%clk 0:02:57]}  d5 {[%clk 0:02:59]} 2. Nc3 {[%clk 0:02:57]}  c6 {[%clk 0:03:00]} 3. e4 {[%clk 0:02:57]}  e6 {[%clk 0:02:58]} 4. d4 {[%clk 0:02:57]}  Nf6 {[%clk 0:02:57]} 5. e5 {[%clk 0:02:58]}  Nfd7 {[%clk 0:02:58]} 6. Nce2 {[%clk 0:02:58]}  c5 {[%clk 0:02:58]} 7. c3 {[%clk 0:02:59]}  Nc6 {[%clk 0:02:59]} 8. f4 {[%clk 0:03:00]}  a5 {[%clk 0:02:56]} 9. Nf3 {[%clk 0:03:00]}  Qb6 {[%clk 0:02:56]} 10. Ng3 {[%clk 0:02:56]}  g6 {[%clk 0:02:46]} 11. Be2 {[%clk 0:02:40]}  a4 {[%clk 0:02:45]} 12. O-O {[%clk 0:02:40]}  Bg7 {[%clk 0:02:43]} 13. h4 {[%clk 0:02:36]}  cxd4 {[%clk 0:02:26]} 14. cxd4 {[%clk 0:02:33]}  O-O {[%clk 0:02:13]} 15. h5 {[%clk 0:02:30]}  f6 {[%clk 0:02:13]} 16. Kh2 {[%clk 0:02:29]}  Ra7 {[%clk 0:01:58]} 17. Qd3 {[%clk 0:02:12]}  f5 {[%clk 0:01:53]} 18. Be3 {[%clk 0:02:07]}  Na5 {[%clk 0:01:52]} 19. Ng5 {[%clk 0:02:00]}  Nb3 {[%clk 0:01:47]} 20. Rad1 {[%clk 0:01:50]}  Nb8 {[%clk 0:01:45]} 21. Rh1 {[%clk 0:01:48]}  Bd7 {[%clk 0:01:45]} 22. Kg1 {[%clk 0:01:45]}  Ra5 {[%clk 0:01:43]} 23. Nxh7 {[%clk 0:01:07]}  Kxh7 {[%clk 0:01:34]} 24. hxg6+ {[%clk 0:01:07]}  Kg8 {[%clk 0:01:35]} 25. Bf2 {[%clk 0:01:04]}  Be8 {[%clk 0:01:30]} 26. Nh5 {[%clk 0:00:45]}  Qc7 {[%clk 0:01:21]} 27. Qg3 {[%clk 0:00:34]}  Nc6 {[%clk 0:00:52]} 28. Rh4 {[%clk 0:00:33]}  b6 {[%clk 0:00:37]} 29. Kh2 {[%clk 0:00:33]}  Ra7 {[%clk 0:00:37]} 30. Rh1 {[%clk 0:00:34]}  Ncxd4 {[%clk 0:00:36]} 31. Bd1 {[%clk 0:00:31]}  Nc6 {[%clk 0:00:21]} 32. Nxg7 {[%clk 0:00:27]}  Qxg7 {[%clk 0:00:21]} 33. Kg1 {[%clk 0:00:28]}  Bxg6 {[%clk 0:00:19]} 34. Rh6 {[%clk 0:00:23]}  Ne7 {[%clk 0:00:15]} 35. Qg5 {[%clk 0:00:21]}  Kf7 {[%clk 0:00:15]} 36. Bh5 {[%clk 0:00:17]}  Rg8 {[%clk 0:00:14]} 37. Bh4 {[%clk 0:00:16]}  Bxh5 {[%clk 0:00:14]} 38. Qxh5+ {[%clk 0:00:15]}  Kf8 {[%clk 0:00:13]} 39. Rf6+ {[%clk 0:00:10]}  Qxf6 {[%clk 0:00:08]} 40. exf6 {[%clk 0:00:11]}  Ng6 {[%clk 0:00:09]} 41. Bg5 {[%clk 0:00:11]}  Rf7 {[%clk 0:00:07]} 42. Qe2 {[%clk 0:00:08]}  Nc5 {[%clk 0:00:07]} 43. Qb5 {[%clk 0:00:08]}  e5 {[%clk 0:00:04]} 44. Qxb6 {[%clk 0:00:08]}  Nxf4 {[%clk 0:00:04]} 45. Qxc5+ {[%clk 0:00:08]}  Ke8 {[%clk 0:00:04]} 46. Qc8# {[%clk 0:00:08]} 1-0